[Event "FIDE Womens Grand Swiss 2021"]
[Site "Riga"]
[Date "2021.11.07"]
[Round "11.19"]
[White "Danielian, Elina"]
[Black "Divya Deshmukh"]
[Result "1-0"]
[ECO "D02"]
[WhiteElo "2450"]
[BlackElo "2305"]
[Annotator "RC"]
[PlyCount "105"]
[EventDate "2021.10.27"]
[EventType "swiss"]
[EventCountry "LAT"]
[Tiebreak "Cut1 Buchholz+Sonneborn-Berger (Swiss)"]
[SourceTitle "playchess.com"]
[Source "ChessBase"]
[SourceQuality "1"]
[TimeControl "40/6000+30:20/3000+30:900+30"]

1. Nf3 {[%emt 0:10:04]} d5 {[%emt 0:10:05]} 2. g3 {[%emt 0:00:03]} Nd7 {
[%emt 0:00:43]} 3. d4 {[%emt 0:00:19]} b5 {[%emt 0:00:04]} 4. a4 {[%emt 0:00:
13]} b4 {[%emt 0:00:05]} 5. c4 {[%emt 0:00:08]} e6 {[%emt 0:01:28]} 6. cxd5 {
[%emt 0:06:00]} exd5 {[%emt 0:00:12]} 7. Bf4 {[%emt 0:07:05]} Ngf6 {[%emt 0:02:
44]} 8. Nbd2 {[%emt 0:01:26]} Ba6 {[%emt 0:19:12]} 9. Bg2 {[%emt 0:01:39]} Nh5
{[%emt 0:07:37]} 10. Bg5 {[%emt 0:00:10]} Be7 {[%emt 0:00:12]} 11. Bxe7 {
[%emt 0:00:53]} Qxe7 {[%emt 0:00:02]} 12. Nf1 {[%emt 0:00:23]} O-O {[%emt 0:04:
07]} 13. Ne3 {[%emt 0:00:03]} c6 {[%emt 0:00:15]} 14. O-O {[%emt 0:00:38]} g6 {
[%emt 0:13:43]} 15. Rc1 {[%emt 0:01:20]} Rac8 {[%emt 0:01:20]} 16. Re1 {
[%emt 0:04:38]} f5 {[%emt 0:01:45]} 17. Qd2 {[%emt 0:00:42]} Nhf6 {[%emt 0:11:
26]} 18. Nc2 {[%emt 0:00:58]} Rb8 {[%emt 0:04:07]} 19. Qg5 {[%emt 0:15:07]} Qd6
{[%emt 0:04:18]} 20. Ne3 {[%emt 0:00:47]} Ne4 {[%emt 0:08:21]} 21. Qf4 {
[%emt 0:00:07]} Qxf4 {[%emt 0:02:45]} 22. gxf4 {[%emt 0:00:02]} Bb7 {[%emt 0:
00:13]} 23. Ne5 {[%emt 0:01:12]} Nxe5 {[%emt 0:00:08]} 24. fxe5 {[%emt 0:00:05]
} b3 {[%emt 0:05:53]} 25. Nf1 {[%emt 0:04:29]} Ba8 {[%emt 0:00:36]} 26. h4 {
[%emt 0:08:58]} f4 {[%emt 0:01:54]} 27. f3 {[%emt 0:00:26]} Ng3 {[%emt 0:00:08]
} 28. Nxg3 {[%emt 0:00:05]} fxg3 {[%emt 0:00:02]} 29. e3 {[%emt 0:00:05]} Rb4 {
[%emt 0:01:59]} 30. Rc3 {[%emt 0:01:40]} Rfb8 {[%emt 0:03:53]} 31. Ra1 {
[%emt 0:00:05]} Kf7 {[%emt 0:03:29]} 32. Bf1 {[%emt 0:00:21]} Bb7 {[%emt 0:02:
34]} 33. a5 {[%emt 0:00:15]} Bc8 {[%emt 0:01:04]} 34. Rxc6 {[%emt 0:00:19]} Bd7
{[%emt 0:00:15]} 35. Rc7 {[%emt 0:01:10]} R4b7 {[%emt 0:00:36]} 36. Rac1 {
[%emt 0:00:26]} Ke8 {[%emt 0:00:40]} 37. a6 {[%emt 0:01:06]} Rxc7 {[%emt 0:00:
06]} 38. Rxc7 {[%emt 0:00:04]} Rc8 {[%emt 0:00:45]} 39. Rxc8+ {[%emt 0:02:29]}
Bxc8 {[%emt 0:00:02]} 40. Bb5+ {[%emt 0:01:10]} Ke7 {[%emt 0:00:20]} 41. Kg2 {
[%emt 0:50:05]} h6 {[%emt 0:22:16]} 42. Kxg3 {[%emt 0:00:00]} g5 {[%emt 0:00:
03]} 43. hxg5 {[%emt 0:00:00]} hxg5 {[%emt 0:00:04]} 44. Ba4 {[%emt 0:00:00]}
Bxa6 {[%emt 0:02:26]} 45. Bxb3 {[%emt 0:00:00]} Bc4 {[%emt 0:00:36]} 46. Bd1 {
[%emt 0:00:00]} Kf7 {[%emt 0:00:43]} 47. Kg4 {[%emt 0:00:00]} Kg6 {[%emt 0:00:
01]} 48. Bc2+ {[%emt 0:00:00]} Kh6 {[%emt 0:00:03]} 49. e6 {[%emt 0:00:00]} Be2
{[%emt 0:00:35]} 50. Bb3 {[%emt 0:00:00]} Kg6 {[%emt 0:00:30]} 51. Bxd5 {
[%emt 0:00:00]} Kf6 {[%emt 0:00:01]} 52. e4 {[%emt 0:00:00]} Kg6 {[%emt 0:01:
20]} 53. e5 {[%emt 0:00:00]} 1-0

[Event "FIDE Womens Grand Swiss 2021"]
[Site "Riga"]
[Date "2021.11.07"]
[Round "11.20"]
[White "Padmini, Rout"]
[Black "Arabidze, Meri"]
[Result "0-1"]
[ECO "A50"]
[WhiteElo "2380"]
[BlackElo "2441"]
[Annotator "NA RC"]
[PlyCount "98"]
[EventDate "2021.10.27"]
[EventType "swiss"]
[EventCountry "LAT"]
[Tiebreak "Cut1 Buchholz+Sonneborn-Berger (Swiss)"]
[SourceTitle "playchess.com"]
[Source "ChessBase"]
[SourceQuality "1"]
[TimeControl "40/6000+30:20/3000+30:900+30"]

1. Nf3 {[%emt 0:10:08]} Nf6 {[%emt 0:10:19]} 2. g3 {[%emt 0:00:06]} b6 {
[%emt 0:00:05]} 3. Bg2 {[%emt 0:00:09]} Bb7 {[%emt 0:00:01]} 4. O-O {[%emt 0:
00:27]} g6 {[%emt 0:00:06]} 5. c4 {[%emt 0:01:15]} Bg7 {[%emt 0:00:20]} 6. Nc3
{[%emt 0:00:32]} O-O {[%emt 0:00:51]} 7. d4 {[%emt 0:03:51]} Ne4 {[%emt 0:00:
23]} 8. Qd3 {[%emt 0:02:03]} Nxc3 {[%emt 0:01:51]} 9. bxc3 {[%emt 0:00:54]} d6
{[%emt 0:05:55]} 10. e4 {[%emt 0:01:00]} Nc6 {[%emt 0:02:43]} 11. Nd2 {[%emt 0:
05:22]} e5 {[%emt 0:05:41]} 12. d5 {[%emt 0:10:19]} Nb8 {[%emt 0:00:39]} 13. f4
{[%emt 0:01:28]} Nd7 {[%emt 0:15:46]} 14. f5 {[%emt 0:06:32]} Bh6 {[%emt 0:01:
51]} 15. Nf3 {[%emt 0:02:37]} Bxc1 {[%emt 0:00:28]} 16. Raxc1 {[%emt 0:00:05]}
Kg7 {[%emt 0:03:20]} 17. Qe3 {[%emt 0:08:17]} Ba6 {[%emt 0:09:03]} 18. fxg6 {
[%emt 0:10:24]} hxg6 {[%emt 0:06:21]} 19. Nd2 {[%emt 0:11:26]} Qe7 {[%emt 0:06:
16]} 20. Rf2 {[%emt 0:00:50]} Rh8 {[%emt 0:06:30]} 21. Bf1 {[%emt 0:00:38]}
Raf8 {[%emt 0:02:07]} 22. Be2 {[%emt 0:00:27]} Bc8 {[%emt 0:01:45]} 23. Bg4 {
[%emt 0:08:20]} Nc5 {[%emt 0:03:29]} 24. Bxc8 {[%emt 0:00:06]} Rxc8 {[%emt 0:
00:08]} 25. Rcf1 {[%emt 0:00:34]} Rcf8 {[%emt 0:00:08]} 26. h4 {[%emt 0:08:31]}
f6 {[%emt 0:04:33]} 27. Rf3 {[%emt 0:03:29]} Rh5 {[%emt 0:05:08]} 28. Nb3 {
[%emt 0:04:06]} Nd7 {[%emt 0:02:47]} 29. Kf2 {[%emt 0:00:35]} f5 {[%emt 0:05:
00]} 30. exf5 {[%emt 0:04:18]} Rhxf5 {[%emt 0:01:32]} 31. Ke2 {[%emt 0:00:02]}
Rxf3 {[%emt 0:02:21]} 32. Rxf3 {[%emt 0:00:01]} Rxf3 {[%emt 0:00:15]} 33. Qxf3
{[%emt 0:00:04]} Nf6 {[%emt 0:00:17]} 34. g4 {[%emt 0:07:02]} Qd7 {[%emt 0:02:
14]} 35. g5 {[%emt 0:00:02]} Nh5 {[%emt 0:00:09]} 36. Nd2 {[%emt 0:00:09]} Qf5
{[%emt 0:02:36]} 37. Ne4 {[%emt 0:00:42]} Kf7 {[%emt 0:03:20]} 38. Ke3 {
[%emt 0:01:59]} Ke7 {[%emt 0:01:28]} 39. Qf2 {[%emt 0:00:37]} Qh3+ {[%emt 0:00:
51]} 40. Kd2 {[%emt 0:00:17]} Nf4 {[%emt 0:00:59]} 41. Ng3 {[%emt 0:29:34]} Ke8
{[%emt 0:22:03]} 42. Kc2 {[%emt 0:02:05]} Qxh4 {[%emt 0:01:16]} 43. Kb3 {
[%emt 0:00:12]} Kd8 {[%emt 0:07:57]} 44. Qg1 {[%emt 0:03:15]} Kc8 {[%emt 0:07:
00]} 45. Ne4 {[%emt 0:04:09]} Nd3 {[%emt 0:00:34]} 46. Nf6 {[%emt 0:00:03]}
Nc5+ {[%emt 0:01:50]} 47. Kb4 {[%emt 0:00:16]} a5+ {[%emt 0:02:06]} 48. Kb5 {
[%emt 0:00:02]} Kb7 {[%emt 0:00:12]} 49. a4 {[%emt 0:00:34]} Qh8 {[%emt 0:03:
11]} 0-1

[Event "FIDE Womens Grand Swiss 2021"]
[Site "Riga"]
[Date "2021.11.07"]
[Round "11.21"]
[White "Milliet, Sophie"]
[Black "Rogule, Laura"]
[Result "0-1"]
[ECO "B33"]
[WhiteElo "2410"]
[BlackElo "2289"]
[Annotator "RC"]
[PlyCount "106"]
[EventDate "2021.10.27"]
[EventType "swiss"]
[EventCountry "LAT"]
[Tiebreak "Cut1 Buchholz+Sonneborn-Berger (Swiss)"]
[SourceTitle "playchess.com"]
[Source "ChessBase"]
[SourceQuality "1"]
[TimeControl "40/6000+30:20/3000+30:900+30"]

1. e4 {[%emt 0:10:04]} c5 {[%emt 0:10:06]} 2. Nc3 {[%emt 0:00:04]} Nc6 {
[%emt 0:00:37]} 3. Nf3 {[%emt 0:00:11]} Nf6 {[%emt 0:06:35]} 4. d4 {[%emt 0:02:
09]} cxd4 {[%emt 0:00:16]} 5. Nxd4 {[%emt 0:00:03]} e5 {[%emt 0:01:48]} 6. Ndb5
{[%emt 0:00:07]} d6 {[%emt 0:00:15]} 7. Nd5 {[%emt 0:00:21]} Nxd5 {[%emt 0:00:
23]} 8. exd5 {[%emt 0:00:04]} Nb8 {[%emt 0:00:23]} 9. a4 {[%emt 0:03:34]} Be7 {
[%emt 0:01:45]} 10. Bd2 {[%emt 0:00:39]} O-O {[%emt 0:02:20]} 11. Be2 {[%emt 0:
00:16]} f5 {[%emt 0:02:32]} 12. O-O {[%emt 0:00:17]} Nd7 {[%emt 0:02:14]} 13.
a5 {[%emt 0:00:26]} a6 {[%emt 0:12:03]} 14. Na3 {[%emt 0:00:19]} Nf6 {[%emt 0:
05:11]} 15. Bb4 {[%emt 0:11:39]} f4 {[%emt 0:16:29]} 16. Nc4 {[%emt 0:01:35]}
Rf7 {[%emt 0:19:05]} 17. Nb6 {[%emt 0:06:53]} Rb8 {[%emt 0:00:05]} 18. c4 {
[%emt 0:00:20]} Bf5 {[%emt 0:04:35]} 19. Rc1 {[%emt 0:33:19]} Qf8 {[%emt 0:01:
08]} 20. Ba3 {[%emt 0:02:30]} g5 {[%emt 0:01:38]} 21. c5 {[%emt 0:10:06]} dxc5
{[%emt 0:05:42]} 22. d6 {[%emt 0:01:06]} Bxd6 {[%emt 0:00:15]} 23. Bc4 {
[%emt 0:00:06]} Re8 {[%emt 0:09:07]} 24. Bxf7+ {[%emt 0:00:37]} Kxf7 {[%emt 0:
00:07]} 25. Nc4 {[%emt 0:01:01]} Bb8 {[%emt 0:01:39]} 26. Qb3 {[%emt 0:01:04]}
Kg6 {[%emt 0:01:05]} 27. Qxb7 {[%emt 0:00:47]} e4 {[%emt 0:05:16]} 28. Qxa6 {
[%emt 0:13:40]} f3 {[%emt 0:00:25]} 29. g3 {[%emt 0:00:17]} Qh6 {[%emt 0:01:03]
} 30. Rfd1 {[%emt 0:09:20]} e3 {[%emt 0:00:29]} 31. Nxe3 {[%emt 0:00:21]} Rxe3
{[%emt 0:00:27]} 32. Qf1 {[%emt 0:02:33]} Re2 {[%emt 0:00:37]} 33. Rd8 {
[%emt 0:00:34]} Bc7 {[%emt 0:00:21]} 34. Ra8 {[%emt 0:00:27]} Bd3 {[%emt 0:00:
43]} 35. Qd1 {[%emt 0:00:28]} Be4 {[%emt 0:00:22]} 36. Ra6 {[%emt 0:00:03]}
Rxf2 {[%emt 0:00:38]} 37. Rxf6+ {[%emt 0:00:59]} Kxf6 {[%emt 0:00:03]} 38. Kxf2
{[%emt 0:00:05]} Qxh2+ {[%emt 0:00:40]} 39. Ke3 {[%emt 0:00:00]} Bc6 {[%emt 0:
00:54]} 40. Rxc5 {[%emt 0:00:29]} Bf4+ {[%emt 0:00:00]} 41. Kd3 {[%emt 0:26:11]
} Bb7 {[%emt 0:35:26]} 42. gxf4 {[%emt 0:25:19]} f2 {[%emt 0:06:16]} 43. fxg5+
{[%emt 0:00:03]} Kg6 {[%emt 0:04:34]} 44. Kc3 {[%emt 0:01:05]} Qg3+ {[%emt 0:
02:59]} 45. Kb4 {[%emt 0:00:58]} Qf4+ {[%emt 0:00:14]} 46. Rc4 {[%emt 0:00:20]}
f1=Q {[%emt 0:00:09]} 47. Qc2+ {[%emt 0:00:39]} Qf5 {[%emt 0:00:19]} 48. Qh2 {
[%emt 0:00:31]} Qe1+ {[%emt 0:02:32]} 49. Kb3 {[%emt 0:00:09]} Qd1+ {[%emt 0:
01:13]} 50. Kb4 {[%emt 0:00:17]} Qf8+ {[%emt 0:00:40]} 51. Kb5 {[%emt 0:00:40]}
Qd5+ {[%emt 0:00:30]} 52. Rc5 {[%emt 0:00:32]} Qb3+ {[%emt 0:00:21]} 53. Bb4 {
[%emt 0:00:05]} Qe8+ {[%emt 0:00:24]} 0-1

[Event "FIDE Womens Grand Swiss 2021"]
[Site "Riga"]
[Date "2021.11.07"]
[Round "11.22"]
[White "Lujan, Carolina"]
[Black "Hoang, Thanh Trang"]
[Result "0-1"]
[ECO "C03"]
[WhiteElo "2340"]
[BlackElo "2380"]
[Annotator "NA RC"]
[PlyCount "104"]
[EventDate "2021.10.27"]
[EventType "swiss"]
[EventCountry "LAT"]
[Tiebreak "Cut1 Buchholz+Sonneborn-Berger (Swiss)"]
[SourceTitle "playchess.com"]
[Source "ChessBase"]
[SourceQuality "1"]
[TimeControl "40/6000+30:20/3000+30:900+30"]

1. e4 {[%emt 0:10:07]} e6 {[%emt 0:10:18]} 2. d4 {[%emt 0:00:18]} d5 {[%emt 0:
00:19]} 3. Nd2 {[%emt 0:00:10]} Be7 {[%emt 0:00:28]} 4. Ngf3 {[%emt 0:00:16]}
Nf6 {[%emt 0:00:26]} 5. e5 {[%emt 0:00:08]} Nfd7 {[%emt 0:00:20]} 6. Bd3 {
[%emt 0:00:09]} c5 {[%emt 0:00:32]} 7. c3 {[%emt 0:00:07]} b6 {[%emt 0:01:06]}
8. O-O {[%emt 0:00:13]} Ba6 {[%emt 0:00:19]} 9. Ne1 {[%emt 0:00:11]} Qc8 {
[%emt 0:03:34]} 10. Qg4 {[%emt 0:01:07]} O-O {[%emt 0:01:51]} 11. Ndf3 {
[%emt 0:04:43]} Kh8 {[%emt 0:07:54]} 12. h4 {[%emt 0:20:19]} Nc6 {[%emt 0:05:
11]} 13. Ng5 {[%emt 0:31:28]} Bxd3 {[%emt 0:11:02]} 14. Nxd3 {[%emt 0:00:08]}
cxd4 {[%emt 0:08:13]} 15. cxd4 {[%emt 0:00:29]} Qa6 {[%emt 0:06:38]} 16. Rd1 {
[%emt 0:04:40]} Qa4 {[%emt 0:05:25]} 17. Nf4 {[%emt 0:02:22]} f5 {[%emt 0:12:
04]} 18. Qh5 {[%emt 0:03:33]} Bxg5 {[%emt 0:00:14]} 19. hxg5 {[%emt 0:03:28]}
Rfe8 {[%emt 0:02:01]} 20. g6 {[%emt 0:05:50]} Nf8 {[%emt 0:00:35]} 21. Be3 {
[%emt 0:03:48]} Kg8 {[%emt 0:05:38]} 22. gxh7+ {[%emt 0:00:37]} Nxh7 {[%emt 0:
00:25]} 23. Kh2 {[%emt 0:01:09]} Nf8 {[%emt 0:01:16]} 24. Rac1 {[%emt 0:02:30]}
Rec8 {[%emt 0:07:44]} 25. b3 {[%emt 0:09:29]} Qa3 {[%emt 0:02:19]} 26. Rh1 {
[%emt 0:02:09]} Ne7 {[%emt 0:01:48]} 27. Kg3 {[%emt 0:01:43]} Qxa2 {[%emt 0:02:
49]} 28. Qg5 {[%emt 0:01:36]} Kf7 {[%emt 0:02:11]} 29. Kf3 {[%emt 0:01:11]}
Rxc1 {[%emt 0:03:46]} 30. Rxc1 {[%emt 0:00:07]} Qxb3 {[%emt 0:03:22]} 31. Nh5 {
[%emt 0:00:03]} Nfg6 {[%emt 0:00:45]} 32. Nxg7 {[%emt 0:00:34]} Kxg7 {[%emt 0:
00:29]} 33. Qf6+ {[%emt 0:00:03]} Kg8 {[%emt 0:00:19]} 34. Qxe6+ {[%emt 0:00:
02]} Kf8 {[%emt 0:01:42]} 35. g3 {[%emt 0:01:11]} Qd3 {[%emt 0:01:20]} 36. Qf6+
{[%emt 0:00:21]} Ke8 {[%emt 0:00:25]} 37. Rc7 {[%emt 0:00:28]} f4 {[%emt 0:01:
28]} 38. gxf4 {[%emt 0:01:19]} Qf5 {[%emt 0:01:09]} 39. Ke2 {[%emt 0:01:18]}
Qxf6 {[%emt 0:01:40]} 40. exf6 {[%emt 0:00:00]} Kd8 {[%emt 0:00:38]} 41. Rc1 {
[%emt 0:23:23]} Nf5 {[%emt 0:24:33]} 42. Rg1 {[%emt 0:01:13]} Nf8 {[%emt 0:03:
40]} 43. Rg5 {[%emt 0:00:06]} Nd6 {[%emt 0:00:47]} 44. Bc1 {[%emt 0:03:38]} Kd7
{[%emt 0:01:49]} 45. Ba3 {[%emt 0:00:59]} Ne6 {[%emt 0:00:59]} 46. Re5 {
[%emt 0:03:54]} Nc4 {[%emt 0:02:30]} 47. Rxd5+ {[%emt 0:07:19]} Kc6 {[%emt 0:
00:09]} 48. Re5 {[%emt 0:04:31]} Nxd4+ {[%emt 0:02:35]} 49. Kd3 {[%emt 0:00:32]
} Nxe5+ {[%emt 0:00:33]} 50. fxe5 {[%emt 0:00:03]} Kd5 {[%emt 0:00:20]} 51. f7
{[%emt 0:02:01]} Ne6 {[%emt 0:00:38]} 52. Bd6 {[%emt 0:01:16]} Rf8 {[%emt 0:00:
50]} 0-1

[Event "FIDE Womens Grand Swiss 2021"]
[Site "Riga"]
[Date "2021.11.07"]
[Round "11.23"]
[White "Eizaguerri Floris, Maria"]
[Black "Maltsevskaya, Aleksandra"]
[Result "0-1"]
[ECO "E60"]
[WhiteElo "2328"]
[BlackElo "2411"]
[Annotator "RC"]
[PlyCount "154"]
[EventDate "2021.10.27"]
[EventType "swiss"]
[EventCountry "LAT"]
[Tiebreak "Cut1 Buchholz+Sonneborn-Berger (Swiss)"]
[SourceTitle "playchess.com"]
[Source "ChessBase"]
[SourceQuality "1"]
[TimeControl "40/6000+30:20/3000+30:900+30"]

1. d4 {[%emt 0:10:02]} Nf6 {[%emt 0:10:06]} 2. Nf3 {[%emt 0:00:04]} g6 {
[%emt 0:01:49]} 3. g3 {[%emt 0:00:16]} c5 {[%emt 0:00:52]} 4. c4 {[%emt 0:05:
21]} Qa5+ {[%emt 0:06:43]} 5. Nc3 {[%emt 0:07:00]} Bg7 {[%emt 0:02:31]} 6. Bg2
{[%emt 0:03:32]} Ne4 {[%emt 0:01:34]} 7. Qd3 {[%emt 0:06:55]} cxd4 {[%emt 0:03:
32]} 8. Nxd4 {[%emt 0:02:25]} Nc5 {[%emt 0:01:28]} 9. Qd1 {[%emt 0:04:05]} Nc6
{[%emt 0:02:32]} 10. Be3 {[%emt 0:04:06]} Na4 {[%emt 0:02:46]} 11. Qxa4 {
[%emt 0:04:18]} Qxa4 {[%emt 0:00:15]} 12. Nxa4 {[%emt 0:00:04]} Nxd4 {[%emt 0:
00:32]} 13. Rc1 {[%emt 0:01:11]} O-O {[%emt 0:02:06]} 14. Nc3 {[%emt 0:00:23]}
Rb8 {[%emt 0:09:22]} 15. O-O {[%emt 0:08:31]} b6 {[%emt 0:00:58]} 16. Rfd1 {
[%emt 0:01:54]} Ne6 {[%emt 0:00:28]} 17. b3 {[%emt 0:02:29]} Re8 {[%emt 0:06:
54]} 18. h4 {[%emt 0:02:20]} d6 {[%emt 0:14:09]} 19. Bc6 {[%emt 0:02:25]} Rd8 {
[%emt 0:00:34]} 20. Nb5 {[%emt 0:01:18]} a6 {[%emt 0:00:40]} 21. Nc3 {[%emt 0:
01:04]} Bxc3 {[%emt 0:02:49]} 22. Rxc3 {[%emt 0:01:15]} Bb7 {[%emt 0:00:06]}
23. Bd5 {[%emt 0:03:44]} Nc5 {[%emt 0:00:08]} 24. b4 {[%emt 0:17:22]} Na4 {
[%emt 0:03:27]} 25. Rc2 {[%emt 0:00:27]} Rdc8 {[%emt 0:00:42]} 26. Rdc1 {
[%emt 0:01:29]} Kf8 {[%emt 0:00:28]} 27. Kf1 {[%emt 0:02:29]} e6 {[%emt 0:05:
17]} 28. Bg2 {[%emt 0:02:11]} Bxg2+ {[%emt 0:00:57]} 29. Kxg2 {[%emt 0:00:05]}
Rb7 {[%emt 0:00:35]} 30. c5 {[%emt 0:08:32]} bxc5 {[%emt 0:00:48]} 31. bxc5 {
[%emt 0:00:04]} Rbc7 {[%emt 0:00:16]} 32. c6 {[%emt 0:02:59]} Ke8 {[%emt 0:01:
42]} 33. Rc4 {[%emt 0:00:48]} Nc5 {[%emt 0:00:14]} 34. Bf4 {[%emt 0:00:36]} Ke7
{[%emt 0:05:14]} 35. Bxd6+ {[%emt 0:00:21]} Kxd6 {[%emt 0:00:06]} 36. Rxc5 {
[%emt 0:00:03]} Rxc6 {[%emt 0:00:05]} 37. Rxc6+ {[%emt 0:00:04]} Rxc6 {[%emt 0:
00:04]} 38. Rd1+ {[%emt 0:00:15]} Kc7 {[%emt 0:01:35]} 39. Rd3 {[%emt 0:01:32]}
Rc5 {[%emt 0:07:15]} 40. Ra3 {[%emt 0:02:51]} a5 {[%emt 0:02:01]} 41. Kf3 {
[%emt 0:28:36]} Kc6 {[%emt 0:21:54]} 42. Ke3 {[%emt 0:01:26]} h6 {[%emt 0:01:
12]} 43. Kd3 {[%emt 0:02:25]} Rd5+ {[%emt 0:01:23]} 44. Kc2 {[%emt 0:04:04]}
Rf5 {[%emt 0:00:06]} 45. f3 {[%emt 0:01:29]} g5 {[%emt 0:01:01]} 46. hxg5 {
[%emt 0:01:09]} hxg5 {[%emt 0:04:27]} 47. e4 {[%emt 0:08:38]} Re5 {[%emt 0:00:
23]} 48. Ra4 {[%emt 0:03:23]} Rc5+ {[%emt 0:04:14]} 49. Kb3 {[%emt 0:01:06]} g4
{[%emt 0:01:39]} 50. f4 {[%emt 0:01:29]} Rb5+ {[%emt 0:04:01]} 51. Kc3 {
[%emt 0:00:34]} Rh5 {[%emt 0:00:28]} 52. Rc4+ {[%emt 0:01:55]} Kb6 {[%emt 0:00:
08]} 53. Kb3 {[%emt 0:01:12]} Rh2 {[%emt 0:00:51]} 54. Rc3 {[%emt 0:01:34]} Rf2
{[%emt 0:00:25]} 55. a3 {[%emt 0:00:25]} Rf3 {[%emt 0:00:25]} 56. Kc4 {[%emt 0:
00:34]} Rf2 {[%emt 0:02:33]} 57. Rb3+ {[%emt 0:00:08]} Kc6 {[%emt 0:00:06]} 58.
Rc3 {[%emt 0:00:04]} f6 {[%emt 0:02:45]} 59. Rb3 {[%emt 0:00:41]} e5 {[%emt 0:
03:14]} 60. fxe5 {[%emt 0:00:03]} fxe5 {[%emt 0:00:03]} 61. Rc3 {[%emt 0:15:12]
} Rd2 {[%emt 0:15:30]} 62. Kb3+ {[%emt 0:02:42]} Kb5 {[%emt 0:00:05]} 63. Rc1 {
[%emt 0:00:43]} a4+ {[%emt 0:01:02]} 64. Kc3 {[%emt 0:00:07]} Ra2 {[%emt 0:00:
03]} 65. Rb1+ {[%emt 0:00:11]} Kc5 {[%emt 0:00:06]} 66. Rd1 {[%emt 0:00:39]}
Rxa3+ {[%emt 0:00:05]} 67. Kb2 {[%emt 0:00:03]} Rxg3 {[%emt 0:01:41]} 68. Rd5+
{[%emt 0:00:03]} Kc4 {[%emt 0:00:28]} 69. Rxe5 {[%emt 0:00:05]} Kd4 {[%emt 0:
00:06]} 70. Re8 {[%emt 0:00:16]} Re3 {[%emt 0:00:04]} 71. Ra8 {[%emt 0:01:02]}
Rxe4 {[%emt 0:00:05]} 72. Rxa4+ {[%emt 0:00:05]} Ke3 {[%emt 0:00:04]} 73. Ra8 {
[%emt 0:00:35]} g3 {[%emt 0:00:07]} 74. Rg8 {[%emt 0:00:37]} Kf3 {[%emt 0:00:
04]} 75. Kc2 {[%emt 0:00:10]} g2 {[%emt 0:00:05]} 76. Rf8+ {[%emt 0:02:35]} Kg3
{[%emt 0:00:08]} 77. Kd3 {[%emt 0:00:11]} Rg4 {[%emt 0:00:06]} 0-1